lending/lending_fUSD_20241113
["ID","MTS","AMOUNT","RATE_DAILY","PERIOD"]
[342155754,1731514232146,-430.42,0.00010496,2]
[342155755,1731514232155,-160.554503,0.000105,2]
[342155756,1731514232166,-426.41767423,0.0001056,2]
[342155757,1731514232176,-167.02,0.00010692,2]
[342155758,1731514232185,-426.41767423,0.00010783,2]
[342155759,1731514232195,-166.66,0.0001088,2]
[342155760,1731514232208,-177.30645593,0.00010889,2]
[342155761,1731514232219,-1000.0,0.00010898,2]
[342155762,1731514232229,-24469.7309412,0.00010899,2]
[342155763,1731514232239,-24469.73094114,0.00010899,2]
[342155764,1731514232249,-13880.08357721,0.00010899,2]
[342155765,1731514232260,-1008.95397315,0.00010899,2]
[342155768,1731514237568,-506.219,0.00010899,2]
[342155769,1731514237580,-1505.33902118,0.00010899,2]
[342155770,1731514237591,-4268.39679835,0.00010899,2]
[342155771,1731514237603,-847.0899425,0.00010899,2]
[342155772,1731514237678,-464.72352123,0.00010899,2]
[342155773,1731514237690,-1988.92510752,0.00010899,2]
[342155774,1731514237699,-3935.39523198,0.00010899,2]
[342155775,1731514237733,-4758.75197161,0.00010899,2]
[342155776,1731514237745,-15775.58373755,0.00010899,2]
[342155777,1731514237754,-12636.50186245,0.00010899,2]
[342155778,1731514237770,-987.95000001,0.00010899,2]
[342155779,1731514237793,-925.98,0.00010899,2]
[342155780,1731514237804,-3309.0,0.00010899,2]
[342155781,1731514237815,-27095.56910071,0.00010899,2]
[342155782,1731514237825,-44955.00096312,0.00010899,2]
[342155783,1731514237834,-44955.00096312,0.00010899,2]
[342155784,1731514237842,-22086.73124245,0.00010899,2]
[342155785,1731514237858,-18703.3420907,0.00010899,2]
[342155786,1731514237875,-4164.92762997,0.00010899,2]
[342155787,1731514237885,-1000.0,0.000109,3]
[342155788,1731514237895,-286.85790397,0.000109,2]
[342155789,1731514237905,-286.85790395,0.000109,2]
[342155790,1731514237914,-286.85790395,0.000109,2]
[342155791,1731514237923,-362.32,0.00010904,2]
[342155792,1731514237932,-150.0,0.00010904,2]
[342155793,1731514237941,-172.16,0.00010908,2]
[342155794,1731514237951,-736.0,0.00010938,2]
[342155795,1731514237961,-250.0,0.00010959,2]
[342155796,1731514237970,-866.24,0.00010959,2]
[342155797,1731514237980,-150.0,0.00010959,2]
[342155798,1731514237989,-354.39,0.00010959,2]
[342155799,1731514237998,-910.4,0.00010959,2]
[342155800,1731514238008,-295.32,0.00010959,2]
[342155801,1731514238017,-246.1,0.00010959,2]
[342155802,1731514238026,-205.08,0.00010959,2]
[342155803,1731514238037,-170.9,0.00010959,2]
[342155804,1731514238046,-1500.0,0.00010959,2]
[342155805,1731514238054,-854.55,0.00010959,2]
[342155806,1731514238065,-524.88,0.00010959,2]
[342155807,1731514238074,-94.88660064,0.00011069,2]
[342155808,1731514238085,-58.56339936,0.00011069,2]
[342155809,1731514238095,-426.41767423,0.00011132,2]
[342155810,1731514238104,-32031.8723906,0.00011132,2]
[342155811,1731514238116,-12923.12857252,0.00011132,2]
[342155812,1731514238133,-159.2,0.00011151,2]
[342155814,1731514238143,-159.2,0.00011156,2]
[342155816,1731514238153,-159.2,0.00011161,2]
[342155818,1731514238162,-159.2,0.00011166,2]
[342155820,1731514238173,-159.2,0.00011171,2]
[342155822,1731514238183,-159.2,0.00011176,2]
[342155825,1731514238193,-24469.73094114,0.00011178,2]
[342155827,1731514238205,-159.2,0.00011181,2]
[342155828,1731514238214,-286.85790395,0.00011186,2]
[342155830,1731514238224,-159.2,0.00011186,2]
[342155833,1731514238234,-159.2,0.00011192,2]
[342155835,1731514238243,-159.2,0.00011197,2]
[342155837,1731514238253,-159.2,0.00011202,2]
[342155839,1731514238262,-159.2,0.00011207,2]
[342155841,1731514238271,-4769.58,0.00011281,2]
[342155842,1731514238280,-29999.99,0.00011281,2]
[342155845,1731514238291,-426.41767423,0.00011284,2]
[342155847,1731514238300,-1000.0,0.00011301,2]
[342155848,1731514238310,-205.6922792,0.0001145,2]
[342155850,1731514238318,-23703.51682563,0.00011486,2]
[342155853,1731514238330,-4074.36456188,0.00011486,2]
[342155855,1731514238342,-1692.13039043,0.00011486,2]
[342155857,1731514238353,-1848.3,0.00011486,2]
[342155859,1731514238364,-4488.96970978,0.00011486,2]
[342155862,1731514238380,-1311.10597893,0.00011486,2]
[342155865,1731514238404,-7836.61349647,0.00011486,2]
[342155867,1731514238414,-910.4,0.00011507,2]
[342155869,1731514238423,-24469.73094114,0.00011522,2]
[342155871,1731514238433,-430.42,0.00011546,2]
[342155873,1731514238442,-369.58,0.00011582,2]
[342155875,1731514238451,-286.85790395,0.00011614,2]
[342155877,1731514238460,-150.0,0.00011726,2]
[342155879,1731514238470,-4582.0,0.00011748,2]
[342155881,1731514238479,-153.45,0.00011761,2]
[342155883,1731514238488,-10533.64496551,0.00011839,2]
[342155938,1731514239520,-500.0,0.00010958,2]
[342155939,1731514239530,-155.39084269,0.00010958,2]
[342155940,1731514239552,-344.60915731,0.00010958,2]
[342155941,1731514239562,-449.93178825,0.00010958,2]
[342155942,1731514239574,-50.06821175,0.00010958,2]
[342155943,1731514239583,-413.33641757,0.00010958,2]
[342155944,1731514239594,-86.66358243,0.00010958,2]
[342155945,1731514239604,-250.89538413,0.00010958,2]
[342155946,1731514239613,-941.59439013,0.00011839,2]
[342155947,1731514239632,-1702.60502635,0.00011839,2]
[342155948,1731514239643,-2485.43080663,0.00011839,2]
[342155949,1731514239654,-1041.85,0.00011839,2]
[342155950,1731514239665,-1028.443,0.00011839,2]
[342155951,1731514239676,-1052.35103387,0.00011839,2]
[342155952,1731514239692,-20751.49241227,0.00011839,2]
[342155953,1731514239703,-529.90729708,0.00011839,2]
[342155954,1731514239731,-500.0,0.00010958,2]
[342155955,1731514239741,-4887.68203128,0.00011839,2]
[342155956,1731514239752,-24469.73094114,0.00011867,2]
[342155957,1731514239762,-150.0,0.00011899,2]
[342155958,1731514239771,-1255.0,0.00011899,2]
[342155959,1731514239780,-453.0,0.00011899,2]
[342155960,1731514239789,-1992.0,0.00011899,2]
[342155961,1731514239798,-628.0,0.00011899,2]
[342155962,1731514239807,-563.0,0.00011899,2]
[342155963,1731514239816,-150.0,0.00011899,2]
[342155964,1731514239825,-559.0,0.00011899,2]
[342155965,1731514239835,-1924.0,0.00011899,2]
[342155966,1731514239843,-1259.0,0.00011899,2]
[342155967,1731514239852,-814.0,0.00011899,2]
[342155968,1731514239861,-922.0,0.00011899,2]
[342155969,1731514239874,-3745.0,0.00011899,2]
[342155970,1731514239883,-3488.0,0.00011899,2]
[342155971,1731514239893,-1160.0,0.00011899,2]
[342155972,1731514239902,-150.0,0.00011899,2]
[342155973,1731514239911,-5931.0,0.00011899,2]
[342155974,1731514239920,-13637.0,0.00011899,2]
[342155975,1731514239929,-1091.0,0.00011899,2]
[342155976,1731514239938,-2000.0,0.000119,4]
[342155977,1731514239947,-581.82025964,0.000119,2]
[342155978,1731514239956,-500.0,0.000119,2]
[342155979,1731514239965,-160.554503,0.00011938,3]
[342155980,1731514239975,-1787.95,0.00011941,2]
[342155981,1731514239983,-166.41174457,0.00011987,2]
[342155982,1731514239992,-172.16,0.00011999,2]
[342155983,1731514240002,-150.0,0.00012,3]
[342155984,1731514240011,-1450.0,0.00012,2]
[342155985,1731514240020,-10858.81943977,0.00012,2]
[342155986,1731514240030,-742.0,0.00012031,2]
[342155987,1731514240041,-151.5,0.00012033,2]
[342155989,1731514240050,-286.85790395,0.00012043,2]
[342155991,1731514240059,-4827.0,0.00012055,2]
[342155993,1731514240069,-910.4,0.00012055,2]
[342155995,1731514240077,-7391.46,0.00012065,2]
[342155997,1731514240086,-166.66,0.00012088,2]
[342155998,1731514240096,-166.41174456,0.00012139,2]
[342156000,1731514240106,-44955.00096312,0.00012193,2]
[342156002,1731514240122,-24469.73094114,0.00012211,2]
[342156005,1731514240135,-151.86,0.00012256,2]
[342156006,1731514240145,-166.41174456,0.00012291,2]
[342156009,1731514240155,-1716.0,0.000123,2]
[342156010,1731514240166,-3100.0,0.000123,4]
[342156012,1731514240175,-16491.17,0.00012329,2]
[342156014,1731514240185,-531.42294,0.00012396,2]
[342156016,1731514240194,-4100.0,0.000124,4]
[342156018,1731514240205,-1000.0,0.00012431,2]
[342156020,1731514240214,-166.41174456,0.00012444,2]
[342156022,1731514240224,-1000.0,0.00012448,2]
[342156025,1731514240234,-153.45,0.00012453,2]
[342156027,1731514240243,-286.85790395,0.00012471,2]
[342156029,1731514240252,-400.0,0.000125,2]
[342156031,1731514240262,-3202.91033562,0.000125,4]
[342156035,1731514241675,-1997.08966438,0.000125,4]
[342156036,1731514241685,-44955.00096312,0.00012546,2]
[342156037,1731514241695,-301.67,0.00012548,2]
[342156038,1731514241705,-24469.73094114,0.00012556,2]
[342156039,1731514241715,-598.87328536,0.00012565,2]
[342156040,1731514241724,-168.7483432,0.0001259,2]
[342156041,1731514241735,-207.01885934,0.0001259,2]
[342156042,1731514241745,-430.42,0.00012596,2]
[342156043,1731514241756,-166.41174456,0.00012596,2]
[342156044,1731514241765,-1050.0,0.000126,2]
[342156045,1731514241775,-1000.0,0.000126,4]
[342156046,1731514241785,-910.4,0.00012603,2]
[342156047,1731514241795,-2669.29,0.00012604,2]
[342156048,1731514241804,-1137.66272265,0.00012689,3]
[342156049,1731514241814,-1500.0,0.00012689,2]
[342156050,1731514241824,-105019.89717131,0.0001269,3]
[342156051,1731514241836,-550.08904819,0.0001269,3]
[342156052,1731514241848,-1505.44685352,0.0001269,3]
[342156053,1731514241859,-600.70263248,0.0001269,3]
[342156054,1731514241876,-44964.04942691,0.0001269,3]
[342156055,1731514241887,-1783.79797199,0.0001269,3]
[342156056,1731514241899,-1055.94859568,0.0001269,3]
[342156057,1731514241911,-475.10769815,0.0001269,3]
[342156058,1731514241922,-1087.25603098,0.0001269,3]
[342156059,1731514241934,-34480.44371901,0.0001269,3]
[342156060,1731514241945,-5926.22178414,0.0001269,3]
[342156061,1731514241956,-13904.1,0.0001269,3]
[342156062,1731514241972,-274.68869892,0.0001269,3]
[342156063,1731514241983,-1979.79404271,0.0001269,3]
[342156064,1731514241995,-625.14311675,0.0001269,3]
[342156065,1731514242006,-9913.35077084,0.0001269,3]
[342156066,1731514242022,-831.80206994,0.0001269,3]
[342156067,1731514242033,-284.90305182,0.0001269,3]
[342156068,1731514242044,-1156.2,0.0001269,3]
[342156069,1731514242056,-2689.99555988,0.0001269,3]
[342156070,1731514242067,-333.81892786,0.0001269,3]
[342156071,1731514242078,-460.63094984,0.0001269,3]
[342156072,1731514242191,-2786.91771774,0.0001269,3]
[342156078,1731514242695,-23521.76724492,0.0001269,2]
[342156079,1731514242706,-935.21484251,0.0001269,2]
[342156080,1731514242718,-7564.7952034,0.0001269,2]
[342156081,1731514242771,-15713.73098889,0.0001269,2]
[342156082,1731514242782,-1016.1,0.0001269,2]
[342156083,1731514242827,-6472.87651216,0.0001269,2]
[342156084,1731514242841,-1164.86588691,0.0001269,2]
[342156085,1731514242854,-316.220239,0.0001269,2]
[342156086,1731514242865,-941172.74390002,0.0001269,2]
[342156087,1731514242884,-1587.27351582,0.0001269,2]
[342156088,1731514242942,-763.15,0.00011178,2]
[342156089,1731514242952,-17630.55000001,0.0001269,2]
[342156090,1731514242964,-38356.037285,0.0001269,2]
[342156091,1731514242975,-207380.28859419,0.0001269,2]
[342156092,1731514242985,-18738.54606712,0.0001269,3]
[342156093,1731514242996,-3342.56613517,0.0001269,3]
[342156094,1731514243007,-2240.0,0.0001269,3]
[342156187,1731514245568,-506.57687118,0.0001269,2]
[342156188,1731514245580,-4731.25,0.0001269,2]
[342156189,1731514245592,-8358.338,0.0001269,2]
[342156190,1731514245604,-4202.70784917,0.0001269,2]
[342156191,1731514245614,-611.77101363,0.0001269,3]
[342156192,1731514245632,-63046.71054513,0.0001269,3]
[342156193,1731514245644,-14129.0,0.0001269,3]
[342156194,1731514245657,-172262.65751989,0.0001269,3]
[342156195,1731514245669,-78731.8041,0.0001269,3]
[342156196,1731514245759,-10652.15219314,0.0001269,3]
[342156197,1731514245789,-92741.89513951,0.0001269,3]
[342156198,1731514245800,-2137.90186013,0.0001269,3]
[342156199,1731514245812,-7092.91381438,0.0001269,3]
[342156200,1731514245823,-3678.32928813,0.0001269,3]
[342156201,1731514245909,-45543.75433729,0.0001269,3]
[342156202,1731514245920,-13396.71177412,0.0001269,3]
[342156205,1731514261573,-1539.0,0.000139,5]
[342156206,1731514265190,163.92,8.219e-05,2]
[342156207,1731514314454,-70714.50520011,0.0001269,3]
[342156208,1731514394971,500.0,0.0002587,120]
[342156209,1731514398071,2000.0,0.00025145,120]
[342156210,1731514398499,2000.0,0.0002602,120]
[342156211,1731514399088,2000.0,0.00026894,120]
[342156212,1731514409064,500.0,0.00025576,120]
[342156213,1731514409483,500.0,0.00026883,120]
[342156214,1731514845886,-93000.0,0.0001269,3]
[342156215,1731514920010,50000.0,0.0002,60]
[342156216,1731514951600,10982.20063476,0.0002,60]
[342156217,1731515002109,396.320301,0.00025007,120]
[342156218,1731515004633,2000.0,0.00025007,120]
[342156219,1731515005190,2000.0,0.00025973,120]
[342156220,1731515005579,2000.0,0.00026939,120]
[342156221,1731515018060,500.0,0.00025007,120]
[342156222,1731515018506,500.0,0.00026441,120]
[342156224,1731515059670,765.69,0.00016658,30]
[342156249,1731515120902,194.77939827,9e-05,2]
[342156250,1731515122333,-6882.6314,9.005e-05,2]
[342156251,1731515122357,-2416.37,9.101e-05,2]
[342156252,1731515122380,-300.0,9.105e-05,2]
[342156253,1731515122402,-25684.95648106,9.106e-05,2]
[342156254,1731515122425,-1133.7851,9.885e-05,2]
[342156256,1731515137950,450.0,9e-05,2]
[342156257,1731515158077,1472.67705678,6.94e-05,2]
[342156259,1731515203481,163.92,8.219e-05,2]
[342156260,1731515236886,178.82926859,0.000163,120]
[342156287,1731515286502,1470.0,0.0001,2]
[342156288,1731515289405,8245.48216371,9.999e-05,2]
[342156290,1731515312510,21780.17779845,0.0001,2]
[342156291,1731515312538,10000.0,0.0001,2]
[342156292,1731515312564,10000.0,0.0001,2]
[342156293,1731515312591,10000.0,0.0001,2]
[342156298,1731515318425,9278.32742595,0.000129,7]
[342156321,1731515431864,-150.0,9.999e-05,2]
[342156322,1731515431874,-40043.28468815,0.0001,2]
[342156323,1731515431885,-93099.37805727,0.0001,2]
[342156324,1731515431897,-713.35,0.0001,2]
[342156325,1731515431909,-1869.15084,0.0001,2]
[342156326,1731515431924,-29522.03148715,0.0001,2]
[342156327,1731515431936,-4658.949,0.0001,2]
[342156328,1731515431947,-3156.62866001,0.0001,2]
[342156329,1731515431978,-93032.10471352,0.0001,2]
[342156330,1731515431994,-9290.9,0.0001,2]
[342156331,1731515432025,-3333.59623287,0.0001,2]
[342156332,1731515432036,-177265.99519813,0.0001,2]
[342156333,1731515432047,-140259.25321271,0.0001,2]
[342156336,1731515432067,-6990.373842,0.0001,2]
[342156337,1731515432091,-1659.48424396,0.0001,2]
[342156361,1731515437855,-1330.68,0.0001,2]
[342156362,1731515437866,-17176.08217172,0.0001,2]
[342156363,1731515437877,-11311.105078,0.0001,2]
[342156364,1731515437889,-10429.90887484,0.0001,2]
[342156365,1731515437899,-1999.59566454,0.0001,2]
[342156366,1731515437917,-2783.592,0.0001,2]
[342156367,1731515437928,-594.4893619,0.0001,2]
[342156368,1731515437939,-1337.9999998,0.0001,2]
[342156369,1731515437950,-274.50786223,0.0001,2]
[342156370,1731515437963,-10941.69840077,0.0001,2]
[342156371,1731515437974,-1864.8086453,0.0001,2]
[342156372,1731515437988,-907.77275142,0.0001,2]
[342156373,1731515438010,-1309438.30128987,0.0001,2]
[342156374,1731515438025,-32993.1919999,0.0001,2]
[342156375,1731515438057,-626.62334379,0.0001,2]
[342156376,1731515438068,-186902.23128821,0.0001,2]
[342156377,1731515438079,-10942.10304029,0.0001,2]
[342156378,1731515438091,-2999.79281872,0.0001,2]
[342156379,1731515438102,-227625.93855969,0.0001,2]
[342156380,1731515438121,-7950.00000048,0.0001,2]
[342156381,1731515438133,-1834.0666116,0.0001,2]
[342156383,1731515438145,-1031.66284065,0.0001,2]
[342156385,1731515438160,-500.0,0.0001,2]
[342156771,1731515442101,-503.88742031,0.0001,2]
[342156772,1731515442112,-979.87209154,0.0001,2]
[342156773,1731515442123,-93210.61315829,0.0001,2]
[342156774,1731515442157,-293.84400722,0.0001,2]
[342156779,1731515442268,-251.69676403,0.0001,2]
[342156781,1731515442280,-465.089625,0.0001,2]
[342156783,1731515442291,-4681.29892975,0.0001,2]
[342156785,1731515442302,-4661.1565,0.0001,2]
[342156789,1731515442332,-1461.24000006,0.0001,2]
[342156792,1731515442343,-335.7599796,0.0001,2]
[342156798,1731515442390,-6485.67920001,9.106e-05,2]
[342156805,1731515442450,-9293.0,9.106e-05,2]
[342156808,1731515442466,-6888.6313632,9.106e-05,2]
[342156853,1731515442705,-2174.29043714,9.106e-05,2]
[342156856,1731515442716,-9064.04156723,0.0001,2]
[342156869,1731515442760,-2318.23927987,0.0001,2]
[342156884,1731515442819,-661.0,0.0001,2]
[342156888,1731515442831,-25474.52908579,0.0001,2]
[342156899,1731515442879,-6155.79820697,0.0001,2]
[342156903,1731515442894,-5460.48492408,0.0001,2]
[342156907,1731515442908,-10680.5843145,0.0001,2]
[342156910,1731515442921,-4525.76552941,0.0001,2]
[342156915,1731515442937,-44196.43623565,0.0001,2]
[342156918,1731515442950,-205818.04076945,0.0001,2]
[342156947,1731515443091,-16425.0,0.0001,2]
[342156951,1731515443104,-63724.14879719,0.0001,2]
[342156961,1731515443145,-860.12657197,0.0001,2]
[342157265,1731515445694,-4836.44252317,0.0001,2]
[342157269,1731515445709,-6800.0,0.0001,2]
[342157275,1731515445723,-41003.953,0.0001,2]
[342157279,1731515445735,-4566.745487,0.0001,2]
[342157283,1731515445750,-7448.703921,0.0001,2]
[342157289,1731515445763,-10045.21164317,0.0001,2]
[342157293,1731515445778,-392.78595299,0.0001,2]
[342157298,1731515445790,-5125.935,0.0001,2]
[342157303,1731515445804,-497.63232885,0.0001,2]
[342157307,1731515445817,-979.47107754,0.0001,2]
[342157312,1731515445829,-705.91862,0.0001,2]
[342157324,1731515445904,-9317.9,0.0001,2]
[342157326,1731515445917,-268035.806,0.0001,2]
[342157328,1731515445931,-4393.43651945,0.0001,2]
[342157331,1731515445944,-28013.61110406,0.0001,2]
[342157333,1731515445957,-3038061.74095008,0.0001,2]
[342157335,1731515445966,-196.20746521,0.0001,2]
[342157337,1731515445976,-3292.25608811,0.00010859,2]
[342157339,1731515445987,-220.52005392,0.00010859,2]
[342157341,1731515445997,-281.31222848,0.00010958,2]
[342157343,1731515446007,-500.0,0.00010958,2]
[342157345,1731515446017,-500.0,0.00010958,2]
[342157348,1731515446027,-500.0,0.00010958,2]
[342157350,1731515446038,-500.0,0.00010958,2]
[342157352,1731515446049,-500.0,0.00010958,2]
[342157354,1731515446060,-500.0,0.00010958,2]
[342157357,1731515446072,-250.09948713,0.00010958,2]
[342157359,1731515446087,-500.0,0.00010958,2]
[342157361,1731515446098,-500.0,0.00010958,2]
[342157363,1731515446109,-500.0,0.00010958,2]
[342157365,1731515446119,-500.0,0.00010958,2]
[342157368,1731515446131,-1500.0,0.00010959,2]
[342157369,1731515446141,-5600.0,0.00010959,2]
[342157371,1731515446152,-311.17,0.00010959,2]
[342157374,1731515446163,-250.0,0.0001097,2]
[342157376,1731515446173,-255.0,0.00010999,2]
[342157378,1731515446184,-182.08,0.00011011,2]
[342157380,1731515446194,-23900.0,0.00011058,2]
[342157382,1731515446206,-250.0,0.0001107,2]
[342157384,1731515446217,-200.0,0.00011106,2]
[342157386,1731515446227,-925.32,0.00011154,2]
[342157388,1731515446237,-166.66,0.00011305,2]
[342157391,1731515446251,-400.43,0.00011338,2]
[342157393,1731515446262,-150.99,0.00011338,2]
[342157395,1731515446273,-4916.54,0.00011338,2]
[342157397,1731515446283,-2416.37,0.00011365,2]
[342157399,1731515446293,-1873.57,0.00011365,2]
[342157401,1731515446304,-2618.84,0.00011365,2]
[342157403,1731515446314,-250.0,0.00011416,2]
[342157405,1731515446324,-765.56,0.00011473,2]
[342157407,1731515446334,-174.61,0.00011532,2]
[342157409,1731515446344,-182.08,0.00011561,2]
[342157412,1731515446354,-150.0,0.00011563,2]
[342157414,1731515446364,-178.17,0.00011596,2]
[342157416,1731515446374,-162.3,0.00011674,2]
[342157418,1731515446384,-1000.0,0.00011853,2]
[342157420,1731515446394,-150.0,0.00011878,2]
[342157422,1731515446404,-300.0,0.00011878,2]
[342157424,1731515446415,-3292.2560881,0.0001188,2]
[342157426,1731515446425,-1450.0,0.00012,2]
[342157428,1731515446436,-27819.153,0.00012,2]
[342157430,1731515446447,-432.63,0.00012027,2]
[342157432,1731515446458,-178.0,0.00012099,2]
[342157434,1731515446468,-182.08,0.00012112,2]
[342157437,1731515446480,-151.52,0.00012121,2]
[342157439,1731515446491,-763.15,0.00012137,2]
[342157441,1731515446504,-763.15,0.00012137,2]
[342157443,1731515446515,-184.3,0.00012137,2]
[342157445,1731515446528,-1229.92,0.00012164,2]
[342157447,1731515446542,-150.0,0.00012164,2]
[342157449,1731515446553,-1000.0,0.00012167,2]
[342157451,1731515446564,-1924.0,0.00012168,2]
[342157453,1731515446574,-559.0,0.00012168,2]
[342157455,1731515446585,-814.0,0.00012168,2]
[342157457,1731515446597,-1259.0,0.00012168,2]
[342157459,1731515446608,-3745.0,0.00012168,2]
[342157462,1731515446622,-922.0,0.00012168,2]
[342157463,1731515446634,-3488.0,0.00012168,2]
[342157464,1731515446645,-637.094,0.00012168,2]
[342157465,1731515446655,-1255.0,0.00012168,2]
[342157466,1731515446665,-150.0,0.00012168,2]
[342157467,1731515446676,-5931.0,0.00012168,2]
[342157468,1731515446686,-13632.0,0.00012168,2]
[342157469,1731515446697,-453.0,0.00012168,2]
[342157470,1731515446707,-3280.2052,0.00012229,2]
[342157471,1731515446718,-1345.4441,0.00012229,2]
[342157472,1731515446728,-15534.4349,0.00012229,2]
[342157474,1731515446739,-4680.33009633,0.00012267,2]
[342157476,1731515446752,-2520.88197055,0.000123,2]
[342157478,1731515446764,-1000.0,0.000123,2]
[342157480,1731515446775,-2500.0,0.000123,2]
[342157482,1731515446785,-43553.63,0.00012329,2]
[342157485,1731515446796,-4680.33009631,0.00012337,2]
[342157487,1731515446807,-2520.88197055,0.00012367,2]
[342157489,1731515446817,-1668.5327,0.000124,2]
[342157491,1731515446828,-4680.33009631,0.00012408,2]
[342157493,1731515446839,-2520.88197055,0.00012433,2]
[342157495,1731515446851,-4680.33009631,0.00012478,2]
[342157497,1731515446863,-244808.65818414,0.000125,2]
[342157499,1731515446874,-37889.5893,0.000125,2]
[342157501,1731515446885,-100000.0,0.000125,2]
[342157503,1731515446896,-2520.88197055,0.000125,2]
[342157505,1731515446907,-426.41767423,0.00012537,2]
[342157507,1731515446917,-4680.33009631,0.00012548,2]
[342157509,1731515446928,-2520.88197055,0.00012567,2]
[342157511,1731515446939,-166.41174456,0.0001257,2]
[342157513,1731515446950,-1000.0,0.00012589,2]
[342157515,1731515446960,-653.0,0.0001259,2]
[342157517,1731515446971,-217673.649,0.0001259,2]
[342157519,1731515446982,-1000.0,0.0001259,2]
[342157521,1731515446995,-500.0,0.0001259,2]
[342157524,1731515447006,-245000.0,0.0001259,2]
[342157526,1731515447017,-1006.0,0.000126,2]
[342157528,1731515447030,-4680.33009631,0.00012619,2]
[342157530,1731515447042,-2520.88197055,0.00012633,2]
[342157532,1731515447053,-182.08,0.00012662,2]
[342157534,1731515447063,-7637.01,0.00012688,2]
[342157536,1731515447075,-2324.27732137,0.00012689,2]
[342157538,1731515447086,-1500.0,0.00012689,2]
[342157540,1731515447097,-4680.33009631,0.00012689,2]
[342157543,1731515447108,-419194.29034084,0.0001269,3]
[342157547,1731515447143,-278887.66902201,0.0001269,3]
[342157549,1731515447157,-4116.20020969,0.0001269,3]
[342157551,1731515447169,-4657.20255,0.0001269,3]
[342157554,1731515447182,-2386.20647234,0.0001269,3]
[342157557,1731515447204,-261368.70141041,0.0001269,3]
[342157559,1731515447215,-151.0,0.0001269,2]
[342157561,1731515447225,-187.725474,0.0001269,2]
[342157563,1731515447235,-187.725474,0.0001269,2]
[342157565,1731515447246,-163.435623,0.0001269,2]
[342157567,1731515447256,-151.0,0.0001269,2]
[342157570,1731515447267,-151.0,0.0001269,2]
[342157572,1731515447277,-316.977837,0.0001269,2]
[342157574,1731515447287,-316.977837,0.0001269,2]
[342157576,1731515447298,-197.775204,0.0001269,2]
[342157578,1731515447309,-197.775204,0.0001269,2]
[342157580,1731515447319,-843783.27659131,0.0001269,3]
[342157582,1731515447330,-151.0,0.0001269,2]
[342157584,1731515447340,-151.0,0.0001269,2]
[342157586,1731515447350,-2449.137491,0.0001269,2]
[342157589,1731515447360,-2449.137491,0.0001269,2]
[342157591,1731515447370,-151.0,0.0001269,2]
[342157593,1731515447381,-151.0,0.0001269,2]
[342157595,1731515447391,-572.332646,0.0001269,2]
[342157597,1731515447401,-572.332646,0.0001269,2]
[342157599,1731515447411,-548.7578,0.0001269,2]
[342157601,1731515447422,-151.0,0.0001269,2]
[342157603,1731515447432,-548.7578,0.0001269,2]
[342157605,1731515447442,-2425.11453,0.0001269,2]
[342157607,1731515447452,-5270.228902,0.0001269,2]
[342157609,1731515447463,-558.145973,0.0001269,2]
[342157612,1731515447473,-5270.228902,0.0001269,2]
[342157614,1731515447484,-558.145973,0.0001269,2]
[342157717,1731515447495,-151.0,0.0001269,2]
[342157723,1731515448504,-3323.531664,0.0001269,2]
[342157727,1731515448540,-3323.531664,0.0001269,2]
[342157730,1731515448556,-151.0,0.0001269,2]
[342157732,1731515448566,-151.0,0.0001269,2]
[342157734,1731515448576,-10000.0,0.0001269,2]
[342157735,1731515448586,-151.0,0.0001269,2]
[342157737,1731515448595,-10000.0,0.0001269,2]
[342157739,1731515448605,-151.0,0.0001269,2]
[342157741,1731515448617,-151.0,0.0001269,2]
[342157743,1731515448628,-150.0,0.000127,2]
[342157746,1731515448638,-150.0,0.000127,2]